[Event "Torneo Nuevo Centro. Jornada 10"]
[Site "Chess.com"]
[Date "2020.08.21"]
[Round "5"]
[White "Hassomal Daswani, Birjkumar"]
[Black "Ainsa Jimenez, Lucas"]
[Result "1-0"]
[WhiteElo "1805"]
[BlackElo "1147"]
[TimeControl "180+2"]
[EndTime "11:25:42 PDT"]
[Termination "Victoria de daz000007 por jaque mate"]

1. e4 {[%clk 0:03:01.9]} 1... e5 {[%clk 0:02:59.3]} 2. Nf3 {[%clk 0:03:01.9]}
2... Nc6 {[%clk 0:02:59.2]} 3. Bc4 {[%clk 0:03:01.6]} 3... Bc5 {[%clk
0:02:59.4]} 4. c3 {[%clk 0:02:59.9]} 4... Nf6 {[%clk 0:02:56.2]} 5. d4 {[%clk
0:02:57.4]} 5... exd4 {[%clk 0:02:55.5]} 6. cxd4 {[%clk 0:02:57.6]} 6... Bb4+
{[%clk 0:02:56]} 7. Nc3 {[%clk 0:02:57.3]} 7... Bxc3+ {[%clk 0:02:56.2]} 8. bxc3
{[%clk 0:02:56.1]} 8... Nxe4 {[%clk 0:02:56.9]} 9. d5 {[%clk 0:02:47.5]} 9...
Qe7 {[%clk 0:02:51.8]} 10. O-O {[%clk 0:02:45.1]} 10... Na5 {[%clk 0:02:48.9]}
11. Bd3 {[%clk 0:02:44.3]} 11... O-O {[%clk 0:02:46.1]} 12. Qa4 {[%clk
0:02:38.3]} 12... Nc5 {[%clk 0:02:25.7]} 13. Qxa5 {[%clk 0:02:29]} 13... Nxd3
{[%clk 0:02:25]} 14. Ba3 {[%clk 0:02:29.6]} 14... Qf6 {[%clk 0:02:00]} 15. Bxf8
{[%clk 0:02:29]} 15... Kxf8 {[%clk 0:01:59.9]} 16. Qb5 {[%clk 0:02:27.2]} 16...
Nf4 {[%clk 0:01:56.5]} 17. Qc5+ {[%clk 0:02:20.6]} 17... Kg8 {[%clk 0:01:48]}
18. Rfe1 {[%clk 0:02:21]} 18... g6 {[%clk 0:01:40.2]} 19. Re8+ {[%clk
0:02:13.2]} 19... Kg7 {[%clk 0:01:40]} 20. Qd4 {[%clk 0:02:13.2]} 20... Qxd4
{[%clk 0:01:40.2]} 21. Nxd4 {[%clk 0:02:06.7]} 21... b6 {[%clk 0:01:34.6]} 22.
c4 {[%clk 0:02:00.6]} 22... Bb7 {[%clk 0:01:34]} 23. Rxa8 {[%clk 0:01:59.9]}
23... Bxa8 {[%clk 0:01:34.6]} 24. Rd1 {[%clk 0:02:00.1]} 24... c5 {[%clk
0:01:26.5]} 25. dxc6 {[%clk 0:01:51.8]} 25... dxc6 {[%clk 0:01:23.6]} 26. g3
{[%clk 0:01:49.1]} 26... Nh5 {[%clk 0:01:20.1]} 27. f3 {[%clk 0:01:44.5]} 27...
c5 {[%clk 0:01:18.5]} 28. Nb5 {[%clk 0:01:42.2]} 28... Bxf3 {[%clk 0:01:18]} 29.
Rd7 {[%clk 0:01:41.9]} 29... a6 {[%clk 0:01:15.1]} 30. Nd6 {[%clk 0:01:36.9]}
30... Bg4 {[%clk 0:01:02.8]} 31. Rxf7+ {[%clk 0:01:34.6]} 31... Kh6 {[%clk
0:01:00.1]} 32. Ra7 {[%clk 0:01:33.2]} 32... a5 {[%clk 0:00:52.6]} 33. Kf2
{[%clk 0:01:14.9]} 33... Nf6 {[%clk 0:00:51.5]} 34. Nc8 {[%clk 0:01:08.6]} 34...
Bxc8 {[%clk 0:00:50.6]} 35. Rc7 {[%clk 0:01:07.3]} 35... Be6 {[%clk 0:00:44.5]}
36. Rc6 {[%clk 0:01:07.8]} 36... Bxc4 {[%clk 0:00:43.7]} 37. Rxf6 {[%clk
0:01:08.2]} 37... Bxa2 {[%clk 0:00:41.2]} 38. Rxb6 {[%clk 0:01:08]} 38... c4
{[%clk 0:00:41.5]} 39. Ra6 {[%clk 0:01:08.3]} 39... Kg5 {[%clk 0:00:39.2]} 40.
Rxa5+ {[%clk 0:01:08.6]} 40... Kg4 {[%clk 0:00:36.7]} 41. Rxa2 {[%clk
0:01:08.7]} 41... Kh3 {[%clk 0:00:36.7]} 42. Kg1 {[%clk 0:01:07.8]} 42... h5
{[%clk 0:00:36.8]} 43. Rc2 {[%clk 0:01:08.2]} 43... g5 {[%clk 0:00:37.1]} 44.
Rxc4 {[%clk 0:01:07.6]} 44... g4 {[%clk 0:00:36.6]} 45. Rc8 {[%clk 0:01:07.8]}
45... h4 {[%clk 0:00:36.5]} 46. gxh4 {[%clk 0:01:05.4]} 46... Kxh4 {[%clk
0:00:37.1]} 47. Kg2 {[%clk 0:01:06.3]} 47... Kg5 {[%clk 0:00:37.3]} 48. Kg3
{[%clk 0:01:06.5]} 48... Kf5 {[%clk 0:00:38.1]} 49. Rc4 {[%clk 0:01:06.2]} 49...
Ke5 {[%clk 0:00:37.9]} 50. Rxg4 {[%clk 0:01:07.5]} 50... Kd5 {[%clk 0:00:38.7]}
51. h4 {[%clk 0:01:07.9]} 51... Ke5 {[%clk 0:00:39.8]} 52. h5 {[%clk 0:01:08.7]}
52... Kf6 {[%clk 0:00:40]} 53. h6 {[%clk 0:01:09]} 53... Kf7 {[%clk 0:00:40.9]}
54. Rg5 {[%clk 0:01:06.7]} 54... Kf6 {[%clk 0:00:37.1]} 55. Kg4 {[%clk
0:01:07.3]} 55... Ke7 {[%clk 0:00:36.7]} 56. Rg6 {[%clk 0:01:07.8]} 56... Kf7
{[%clk 0:00:37]} 57. Kg5 {[%clk 0:01:08.6]} 57... Ke7 {[%clk 0:00:37.3]} 58. h7
{[%clk 0:01:09.3]} 58... Kf7 {[%clk 0:00:37.7]} 59. Kf5 {[%clk 0:01:09.4]} 59...
Ke7 {[%clk 0:00:38.3]} 60. Rg7+ {[%clk 0:01:10.3]} 60... Kd6 {[%clk 0:00:37.8]}
61. h8=Q {[%clk 0:01:10.8]} 61... Kd5 {[%clk 0:00:37]} 62. Qd8+ {[%clk
0:01:11.1]} 62... Kc4 {[%clk 0:00:35.3]} 63. Rc7+ {[%clk 0:01:12.1]} 63... Kb5
{[%clk 0:00:36.1]} 64. Qb8+ {[%clk 0:01:12.9]} 64... Ka6 {[%clk 0:00:37.9]} 65.
Ra7# {[%clk 0:01:13.9]} 1

[Event "Torneo Nuevo Centro. Jornada 10"]
[Site "Chess.com"]
[Date "2020.08.21"]
[Round "5"]
[White "Garcia, Jhoel"]
[Black "Serarols Mabras, Bernat"]
[Result "0-1"]
[WhiteElo "2399"]
[BlackElo "2404"]
[TimeControl "180+2"]
[EndTime "11:25:45 PDT"]
[Termination "Victoria de bernatserarols por abandono"]

1. c4 {[%clk 0:03:00.8]} 1... e6 {[%clk 0:03:00.9]} 2. d4 {[%clk 0:03:00.5]}
2... d5 {[%clk 0:03:02]} 3. Nc3 {[%clk 0:03:00.3]} 3... Bb4 {[%clk 0:03:02.4]}
4. e3 {[%clk 0:02:53.2]} 4... Nf6 {[%clk 0:02:59.8]} 5. Bd3 {[%clk 0:02:51.3]}
5... O-O {[%clk 0:03:00.4]} 6. a3 {[%clk 0:02:50.9]} 6... Bxc3+ {[%clk
0:02:59.2]} 7. bxc3 {[%clk 0:02:52.1]} 7... c6 {[%clk 0:02:58.9]} 8. Nf3 {[%clk
0:02:50.1]} 8... b6 {[%clk 0:02:59.1]} 9. O-O {[%clk 0:02:50.6]} 9... Ba6 {[%clk
0:02:59.7]} 10. cxd5 {[%clk 0:02:42.1]} 10... Bxd3 {[%clk 0:03:01.6]} 11. Qxd3
{[%clk 0:02:42.8]} 11... cxd5 {[%clk 0:03:03.2]} 12. a4 {[%clk 0:02:40.7]} 12...
Nc6 {[%clk 0:03:02.1]} 13. Ba3 {[%clk 0:02:39.4]} 13... Re8 {[%clk 0:03:02.6]}
14. c4 {[%clk 0:02:40.8]} 14... Rc8 {[%clk 0:02:59]} 15. c5 {[%clk 0:02:38.3]}
15... Na5 {[%clk 0:02:55.9]} 16. Ne5 {[%clk 0:02:29.7]} 16... Nd7 {[%clk
0:02:50.1]} 17. f4 {[%clk 0:01:48.4]} 17... bxc5 {[%clk 0:02:40.1]} 18. Bxc5
{[%clk 0:01:13]} 18... Nxc5 {[%clk 0:02:31.9]} 19. dxc5 {[%clk 0:01:13.2]} 19...
Rxc5 {[%clk 0:02:31.3]} 20. f5 {[%clk 0:01:14.6]} 20... Qc7 {[%clk 0:02:03.1]}
21. Ng4 {[%clk 0:00:50.3]} 21... Rc4 {[%clk 0:01:37.5]} 22. fxe6 {[%clk
0:00:39.1]} 22... fxe6 {[%clk 0:01:39.4]} 23. h3 {[%clk 0:00:23.7]} 23... Nc6
{[%clk 0:01:29.9]} 24. Rf2 {[%clk 0:00:16.8]} 24... Ne5 {[%clk 0:01:27.5]} 25.
Nxe5 {[%clk 0:00:17.6]} 25... Qxe5 {[%clk 0:01:29.2]} 26. Raf1 {[%clk
0:00:18.7]} 26... Rc3 {[%clk 0:01:21.5]} 27. Qb5 {[%clk 0:00:19.2]} 27... Rcc8
{[%clk 0:01:11.6]} 28. Qd7 {[%clk 0:00:16.8]} 28... Qxe3 {[%clk 0:01:06]} 29.
Kh1 {[%clk 0:00:17.2]} 29... h6 {[%clk 0:01:02.1]} 30. Rf7 {[%clk 0:00:18.2]}
30... Qg5 {[%clk 0:00:59.4]} 31. Qxa7 {[%clk 0:00:16.2]} 31... Rcd8 {[%clk
0:00:45.7]} 32. Qc7 {[%clk 0:00:12]} 32... d4 {[%clk 0:00:44.4]} 33. R1f3 {[%clk
0:00:13.4]} 33... e5 {[%clk 0:00:41.5]} 34. R3f5 {[%clk 0:00:12.4]} 34... Qg6
{[%clk 0:00:39.1]} 35. Rf1 {[%clk 0:00:06]} 35... d3 {[%clk 0:00:40]} 36. R7f3
{[%clk 0:00:04.6]} 36... d2 {[%clk 0:00:33.1]} 37. Rd1 {[%clk 0:00:04.9]} 37...
e4 {[%clk 0:00:33.6]} 38. Re3 {[%clk 0:00:05.1]} 38... Kh8 {[%clk 0:00:21.3]}
39. Qc2 {[%clk 0:00:04.6]} 39... Rd3 {[%clk 0:00:16]} 40. Re2 {[%clk 0:00:02.7]}
40... e3 {[%clk 0:00:13.6]} 41. Qc4 {[%clk 0:00:02.8]} 41... Qe4 {[%clk
0:00:11.4]} 42. Qb5 {[%clk 0:00:03.9]} 42... Re5 {[%clk 0:00:08.5]} 43. Qb8+
{[%clk 0:00:04.5]} 43... Kh7 {[%clk 0:00:09.6]} 44. a5 {[%clk 0:00:06]} 44...
Rxa5 {[%clk 0:00:10.2]} 45. Qb1 {[%clk 0:00:07.2]} 45... Rg5 {[%clk 0:00:10.1]}
46. Qc2 {[%clk 0:00:07.4]} 46... Rd4 {[%clk 0:00:11.2]} 47. Qxe4+ {[%clk
0:00:08.4]} 47... Rxe4 {[%clk 0:00:13.1]} 48. Kh2 {[%clk 0:00:09.1]} 48... Rf5
{[%clk 0:00:12.9]} 49. g4 {[%clk 0:00:09.6]} 49... Rf2+ {[%clk 0:00:13.3]} 50.
Rxf2 {[%clk 0:00:11.1]} 50... exf2 {[%clk 0:00:15.2]} 51. Kg2 {[%clk 0:00:12]}
51... Re1 {[%clk 0:00:16.6]} 52. Rxd2 {[%clk 0:00:13.1]} 52... f1=Q+ {[%clk
0:00:17.4]} 0

[Event "Torneo Nuevo Centro. Jornada 10"]
[Site "Chess.com"]
[Date "2020.08.21"]
[Round "5"]
[White "Aguado, Pablo Luis"]
[Black "Nadal Fajardo, Ricard"]
[Result "1/2-1/2"]
[WhiteElo "1956"]
[BlackElo "2218"]
[TimeControl "180+2"]
[EndTime "11:25:54 PDT"]
[Termination "Partida en tablas por material insuficiente"]

1. d4 {[%clk 0:02:55.8]} 1... c6 {[%clk 0:03:01.8]} 2. c4 {[%clk 0:02:55.2]}
2... d5 {[%clk 0:03:03.7]} 3. Nc3 {[%clk 0:02:54.2]} 3... Nf6 {[%clk 0:03:04.9]}
4. e3 {[%clk 0:02:54.5]} 4... g6 {[%clk 0:03:05.6]} 5. Nf3 {[%clk 0:02:51.7]}
5... Bg7 {[%clk 0:03:06.3]} 6. Be2 {[%clk 0:02:50.9]} 6... O-O {[%clk
0:03:06.9]} 7. O-O {[%clk 0:02:52.1]} 7... h6 {[%clk 0:03:04.1]} 8. b3 {[%clk
0:02:52.7]} 8... Bg4 {[%clk 0:03:00.2]} 9. Bb2 {[%clk 0:02:53.3]} 9... e6 {[%clk
0:02:56.8]} 10. Ne5 {[%clk 0:02:54.2]} 10... Bxe2 {[%clk 0:02:57.4]} 11. Qxe2
{[%clk 0:02:56.1]} 11... Nbd7 {[%clk 0:02:49.7]} 12. Nd3 {[%clk 0:02:56.5]}
12... Ne4 {[%clk 0:02:35.1]} 13. f3 {[%clk 0:02:55.7]} 13... Nxc3 {[%clk
0:02:35.5]} 14. Bxc3 {[%clk 0:02:57.6]} 14... dxc4 {[%clk 0:02:30.2]} 15. bxc4
{[%clk 0:02:58.3]} 15... c5 {[%clk 0:02:31.5]} 16. Qb2 {[%clk 0:02:57.4]} 16...
cxd4 {[%clk 0:02:21.2]} 17. Bxd4 {[%clk 0:02:56.5]} 17... Bxd4 {[%clk
0:01:42.8]} 18. Qxd4 {[%clk 0:02:58.4]} 18... Qc7 {[%clk 0:01:39.8]} 19. Rfc1
{[%clk 0:02:53.5]} 19... Rfd8 {[%clk 0:01:35.6]} 20. Qh4 {[%clk 0:02:51.3]}
20... Kg7 {[%clk 0:01:32.2]} 21. Nf2 {[%clk 0:02:50]} 21... Nf6 {[%clk 0:01:28]}
22. Rc2 {[%clk 0:02:37.6]} 22... Qc5 {[%clk 0:01:24]} 23. Re1 {[%clk 0:02:29.6]}
23... g5 {[%clk 0:01:09.1]} 24. Qg3 {[%clk 0:02:27.5]} 24... Rd6 {[%clk
0:00:43.2]} 25. h4 {[%clk 0:02:20]} 25... Rad8 {[%clk 0:00:42.6]} 26. hxg5
{[%clk 0:02:19.7]} 26... Qxg5 {[%clk 0:00:43.3]} 27. Qxg5+ {[%clk 0:02:15.6]}
27... hxg5 {[%clk 0:00:45.2]} 28. Ree2 {[%clk 0:02:10.2]} 28... Rc6 {[%clk
0:00:38.4]} 29. Rc3 {[%clk 0:01:52.6]} 29... Rdc8 {[%clk 0:00:38.9]} 30. Rb2
{[%clk 0:01:47.9]} 30... b6 {[%clk 0:00:38.4]} 31. Rbc2 {[%clk 0:01:47.2]} 31...
Nd5 {[%clk 0:00:21.8]} 32. Ra3 {[%clk 0:01:40]} 32... Rxc4 {[%clk 0:00:21.9]}
33. Rxc4 {[%clk 0:01:32.5]} 33... Rxc4 {[%clk 0:00:23.7]} 34. e4 {[%clk
0:01:33.6]} 34... Nf4 {[%clk 0:00:19.2]} 35. Rxa7 {[%clk 0:01:31.6]} 35... Rc2
{[%clk 0:00:18.2]} 36. Rb7 {[%clk 0:01:21.3]} 36... Rb2 {[%clk 0:00:13.8]} 37.
a4 {[%clk 0:01:20]} 37... Rb4 {[%clk 0:00:09.4]} 38. a5 {[%clk 0:01:20.1]} 38...
bxa5 {[%clk 0:00:10.5]} 39. Rxb4 {[%clk 0:01:13.8]} 39... axb4 {[%clk
0:00:12.1]} 40. Nd1 {[%clk 0:01:14.8]} 40... b3 {[%clk 0:00:09.7]} 41. Nb2
{[%clk 0:01:12.8]} 41... Kf6 {[%clk 0:00:10.7]} 42. Kf2 {[%clk 0:01:13.1]} 42...
e5 {[%clk 0:00:09.6]} 43. g3 {[%clk 0:01:11.3]} 43... Ne6 {[%clk 0:00:10.1]} 44.
Ke3 {[%clk 0:01:12.5]} 44... Nd4 {[%clk 0:00:10.5]} 45. f4 {[%clk 0:01:11.8]}
45... gxf4+ {[%clk 0:00:10.2]} 46. gxf4 {[%clk 0:01:12.9]} 46... Nc2+ {[%clk
0:00:09.6]} 47. Kf3 {[%clk 0:01:11.5]} 47... Ke6 {[%clk 0:00:09.4]} 48. fxe5
{[%clk 0:01:08.5]} 48... Kxe5 {[%clk 0:00:11.1]} 49. Nc4+ {[%clk 0:01:06.6]}
49... Kd4 {[%clk 0:00:12.2]} 50. Nb2 {[%clk 0:01:07.7]} 50... Kc3 {[%clk
0:00:13.4]} 51. Na4+ {[%clk 0:01:08.5]} 51... Kb4 {[%clk 0:00:13.8]} 52. Nb2
{[%clk 0:01:09]} 52... Nd4+ {[%clk 0:00:10.7]} 53. Kf4 {[%clk 0:01:08.4]} 53...
Kc3 {[%clk 0:00:11.8]} 54. Na4+ {[%clk 0:01:08.5]} 54... Kc2 {[%clk 0:00:12.8]}
55. Ke5 {[%clk 0:01:06.5]} 55... Nc6+ {[%clk 0:00:04.3]} 56. Kf6 {[%clk
0:01:06.9]} 56... Nd8 {[%clk 0:00:03]} 57. Ke7 {[%clk 0:01:07.9]} 57... Nc6+
{[%clk 0:00:03.4]} 58. Kxf7 {[%clk 0:01:08.3]} 58... Kd3 {[%clk 0:00:04.1]} 59.
Nc5+ {[%clk 0:01:07]} 59... Kd4 {[%clk 0:00:05.4]} 60. Nxb3+ {[%clk 0:01:07.8]}
60... Kxe4 {[%clk 0:00:06.8]} 1/2-1

[Event "Torneo Nuevo Centro. Jornada 10"]
[Site "Chess.com"]
[Date "2020.08.21"]
[Round "5"]
[White "Carbonell Bofill, Carlos Eloy"]
[Black "Birnoveanu, Petru"]
[Result "0-1"]
[WhiteElo "1907"]
[BlackElo "1725"]
[TimeControl "180+2"]
[EndTime "11:25:54 PDT"]
[Termination "Victoria de piculet por tiempo"]

1. d4 {[%clk 0:03:01.9]} 1... g6 {[%clk 0:02:59.5]} 2. e4 {[%clk 0:03:00.6]}
2... Bg7 {[%clk 0:02:59.9]} 3. h4 {[%clk 0:03:01.3]} 3... h5 {[%clk 0:02:59.8]}
4. c3 {[%clk 0:03:00.2]} 4... c5 {[%clk 0:03:00.6]} 5. dxc5 {[%clk 0:03:00.1]}
5... a5 {[%clk 0:02:54.9]} 6. Be3 {[%clk 0:02:59.2]} 6... Nf6 {[%clk 0:02:50.5]}
7. Nd2 {[%clk 0:02:59.6]} 7... Ng4 {[%clk 0:02:49.6]} 8. Nc4 {[%clk 0:02:57.2]}
8... Nxe3 {[%clk 0:02:43.6]} 9. Nxe3 {[%clk 0:02:58.9]} 9... Nc6 {[%clk
0:02:40.7]} 10. Nd5 {[%clk 0:02:55]} 10... d6 {[%clk 0:02:36.6]} 11. Nb6 {[%clk
0:02:47.7]} 11... Rb8 {[%clk 0:02:32.3]} 12. Nxc8 {[%clk 0:02:47.1]} 12... Rxc8
{[%clk 0:02:30.8]} 13. cxd6 {[%clk 0:02:49]} 13... Qxd6 {[%clk 0:02:30]} 14.
Qxd6 {[%clk 0:02:49.1]} 14... exd6 {[%clk 0:02:30.8]} 15. O-O-O {[%clk
0:02:48.4]} 15... Ke7 {[%clk 0:02:29.5]} 16. Nf3 {[%clk 0:02:41.9]} 16... a4
{[%clk 0:02:29.2]} 17. a3 {[%clk 0:02:40.1]} 17... Ne5 {[%clk 0:02:25]} 18. Nd4
{[%clk 0:02:32.1]} 18... Ng4 {[%clk 0:02:08.9]} 19. Rd2 {[%clk 0:02:24.3]} 19...
Bh6 {[%clk 0:02:06.4]} 20. f3 {[%clk 0:02:25.8]} 20... Bxd2+ {[%clk 0:02:05.9]}
21. Kxd2 {[%clk 0:02:27.5]} 21... Ne5 {[%clk 0:02:02.2]} 22. Bb5 {[%clk
0:02:27.7]} 22... Nc4+ {[%clk 0:02:00.3]} 23. Kc1 {[%clk 0:02:17.8]} 23... Rhd8
{[%clk 0:01:52.1]} 24. Bxa4 {[%clk 0:02:14.7]} 24... d5 {[%clk 0:01:48.2]} 25.
Re1 {[%clk 0:02:10.8]} 25... dxe4 {[%clk 0:01:46.8]} 26. Rxe4+ {[%clk
0:02:12.7]} 26... Kf6 {[%clk 0:01:47.1]} 27. Nc6 {[%clk 0:01:58.7]} 27... bxc6
{[%clk 0:01:43.5]} 28. Rxc4 {[%clk 0:01:59.1]} 28... c5 {[%clk 0:01:40.5]} 29.
Bb3 {[%clk 0:01:41]} 29... Rc7 {[%clk 0:01:35.9]} 30. Rf4+ {[%clk 0:01:40.1]}
30... Kg7 {[%clk 0:01:36.2]} 31. Re4 {[%clk 0:01:22.9]} 31... Rd6 {[%clk
0:01:27.9]} 32. Bc4 {[%clk 0:01:17.3]} 32... f5 {[%clk 0:01:24.4]} 33. Re2
{[%clk 0:01:13.8]} 33... Kf6 {[%clk 0:01:23.2]} 34. a4 {[%clk 0:01:12.9]} 34...
g5 {[%clk 0:01:18.8]} 35. hxg5+ {[%clk 0:01:00.5]} 35... Kxg5 {[%clk 0:01:19]}
36. a5 {[%clk 0:01:02]} 36... h4 {[%clk 0:01:14.3]} 37. a6 {[%clk 0:01:01.5]}
37... Kf6 {[%clk 0:00:57.4]} 38. Re8 {[%clk 0:00:53.6]} 38... Rg7 {[%clk
0:00:46.7]} 39. f4 {[%clk 0:00:35.9]} 39... Rdd7 {[%clk 0:00:29.4]} 40. Rf8+
{[%clk 0:00:28]} 40... Ke7 {[%clk 0:00:26.4]} 41. Rxf5 {[%clk 0:00:25.7]} 41...
Rxg2 {[%clk 0:00:26.8]} 42. Rxc5 {[%clk 0:00:25.4]} 42... Kd6 {[%clk 0:00:16.7]}
43. Rd5+ {[%clk 0:00:21.5]} 43... Kc7 {[%clk 0:00:16.3]} 44. Rxd7+ {[%clk
0:00:22.3]} 44... Kxd7 {[%clk 0:00:16.5]} 45. a7 {[%clk 0:00:23.8]} 45... Rg1+
{[%clk 0:00:16.4]} 46. Kc2 {[%clk 0:00:22.7]} 46... Ra1 {[%clk 0:00:16.6]} 0

[Event "Torneo Nuevo Centro. Jornada 10"]
[Site "Chess.com"]
[Date "2020.08.21"]
[Round "5"]
[White "Valmaña Cantó, Jaime"]
[Black "Macias Pino, Diego"]
[Result "0-1"]
[WhiteElo "2380"]
[BlackElo "2254"]
[TimeControl "180+2"]
[EndTime "11:26:04 PDT"]
[Termination "Victoria de adivinaquiensoy por tiempo"]

1. c4 {[%clk 0:03:01.9]} 1... g6 {[%clk 0:02:59.4]} 2. Nf3 {[%clk 0:03:01.6]}
2... Bg7 {[%clk 0:03:01.3]} 3. g3 {[%clk 0:03:03.1]} 3... d6 {[%clk 0:03:03.2]}
4. Bg2 {[%clk 0:03:04.6]} 4... Nd7 {[%clk 0:03:04.3]} 5. O-O {[%clk 0:03:05.1]}
5... f5 {[%clk 0:03:05.6]} 6. d4 {[%clk 0:02:58.2]} 6... Ngf6 {[%clk 0:03:06]}
7. Ng5 {[%clk 0:02:42.8]} 7... Nf8 {[%clk 0:02:59.4]} 8. Nc3 {[%clk 0:02:37.7]}
8... h6 {[%clk 0:02:57.9]} 9. Nh3 {[%clk 0:02:38.9]} 9... c6 {[%clk 0:02:48.8]}
10. d5 {[%clk 0:02:27.3]} 10... c5 {[%clk 0:02:44.3]} 11. e4 {[%clk 0:02:18.9]}
11... fxe4 {[%clk 0:02:26.1]} 12. Nf4 {[%clk 0:02:18]} 12... Bf5 {[%clk
0:02:24.6]} 13. Re1 {[%clk 0:02:08.7]} 13... N8d7 {[%clk 0:01:44.7]} 14. Ne6
{[%clk 0:02:06.8]} 14... Bxe6 {[%clk 0:01:43.3]} 15. dxe6 {[%clk 0:02:08.1]}
15... Ne5 {[%clk 0:01:43.9]} 16. Nxe4 {[%clk 0:02:08.7]} 16... Qc8 {[%clk
0:01:25.2]} 17. Qa4+ {[%clk 0:01:22.6]} 17... Nc6 {[%clk 0:01:18]} 18. Nxf6+
{[%clk 0:01:15.7]} 18... Bxf6 {[%clk 0:01:19.9]} 19. Be4 {[%clk 0:01:08.5]}
19... g5 {[%clk 0:01:15.3]} 20. Qd1 {[%clk 0:01:03.2]} 20... Kd8 {[%clk
0:01:05.2]} 21. Rb1 {[%clk 0:00:51.3]} 21... Be5 {[%clk 0:00:21.3]} 22. a3
{[%clk 0:00:48.4]} 22... Qxe6 {[%clk 0:00:22.1]} 23. b4 {[%clk 0:00:38.6]} 23...
Qxc4 {[%clk 0:00:20.4]} 24. Bd5 {[%clk 0:00:31.4]} 24... Qd4 {[%clk 0:00:21]}
25. Qf3 {[%clk 0:00:25.7]} 25... Kc7 {[%clk 0:00:21.4]} 26. Bb2 {[%clk
0:00:21.4]} 26... Raf8 {[%clk 0:00:11.4]} 27. Bxd4 {[%clk 0:00:20.5]} 27... Rxf3
{[%clk 0:00:09.6]} 28. Bxe5 {[%clk 0:00:21.5]} 28... Nxe5 {[%clk 0:00:10.8]} 29.
Rxe5 {[%clk 0:00:21.6]} 29... dxe5 {[%clk 0:00:05.9]} 30. Bxf3 {[%clk
0:00:22.9]} 30... cxb4 {[%clk 0:00:07.8]} 31. Rxb4 {[%clk 0:00:22.9]} 31... b6
{[%clk 0:00:08.7]} 32. Rc4+ {[%clk 0:00:23.2]} 32... Kd7 {[%clk 0:00:09.6]} 33.
Bg4+ {[%clk 0:00:21.9]} 33... e6 {[%clk 0:00:10.8]} 34. Bf3 {[%clk 0:00:19.2]}
34... Rd8 {[%clk 0:00:10.5]} 35. Ra4 {[%clk 0:00:15.3]} 35... a5 {[%clk
0:00:11]} 36. Re4 {[%clk 0:00:16.6]} 36... Kd6 {[%clk 0:00:11.9]} 37. h4 {[%clk
0:00:17.1]} 37... Rc8 {[%clk 0:00:11.8]} 38. hxg5 {[%clk 0:00:17.2]} 38... hxg5
{[%clk 0:00:13.7]} 39. Rg4 {[%clk 0:00:18.2]} 39... Rc3 {[%clk 0:00:10.9]} 40.
Kg2 {[%clk 0:00:15.9]} 40... Rxa3 {[%clk 0:00:11.6]} 41. Rxg5 {[%clk 0:00:15.4]}
41... b5 {[%clk 0:00:13]} 42. Rg6 {[%clk 0:00:16.5]} 42... b4 {[%clk 0:00:12.5]}
43. Bg4 {[%clk 0:00:17.9]} 43... b3 {[%clk 0:00:13.8]} 44. Bxe6 {[%clk
0:00:18.5]} 44... Kc5 {[%clk 0:00:14.4]} 45. g4 {[%clk 0:00:13.8]} 45... a4
{[%clk 0:00:15.6]} 46. Bf5 {[%clk 0:00:13.2]} 46... Kd5 {[%clk 0:00:14.8]} 47.
Rg8 {[%clk 0:00:13.4]} 47... b2 {[%clk 0:00:14.4]} 48. Rd8+ {[%clk 0:00:14.4]}
48... Kc4 {[%clk 0:00:13.7]} 49. g5 {[%clk 0:00:15.5]} 49... Rb3 {[%clk
0:00:10.2]} 50. g6 {[%clk 0:00:06.8]} 50... Rb7 {[%clk 0:00:11.4]} 51. Ra8
{[%clk 0:00:05.9]} 51... Kb3 {[%clk 0:00:07.2]} 0